fUST/lending_fUST_20260131
["ID","MTS","AMOUNT","RATE_DAILY","PERIOD"]
[404101209,1769838649714,-429.318,0.0003498,40]
[404101210,1769838649723,-2074.0,0.0003498,40]
[404101211,1769838649733,-163.89230052,0.0003498,30]
[404101212,1769838649743,-342.6331005,0.0003498,30]
[404101213,1769838649753,-151.0,0.0003498,30]
[404101214,1769838649763,-250.0,0.0003498,30]
[404101215,1769838649772,-262.35018949,0.0003498,40]
[404101216,1769838649782,-2000.0,0.0003498,30]
[404101217,1769838649791,-259.25,0.0003498,40]
[404101218,1769838649801,-413.92954665,0.0003498,40]
[404101219,1769838649810,-151.0,0.0003498,30]
[404101220,1769838649819,-156.587,0.0003498,40]
[404101221,1769838649829,-500.0,0.0003498,30]
[404101222,1769838649839,-518.5,0.0003498,40]
[404101223,1769838649848,-1888.00000001,0.0003498,30]
[404101224,1769838649858,-2000.0,0.00034984,7]
[404101225,1769838649868,-951.54754058,0.00034989,2]
[404101226,1769838649879,-229.91876197,0.00034993,2]
[404101227,1769838649888,-47814.09266733,0.00035,14]
[404101228,1769838649899,-10777.41282502,0.00035,2]
[404101229,1769838649909,-1000.0,0.00035,7]
[404101230,1769838649919,-2000.0,0.00035,2]
[404101231,1769838649928,-1265.0,0.00035,10]
[404101232,1769838649937,-160.0,0.00035,14]
[404101233,1769838649948,-242.64798308,0.00035,120]
[404101234,1769838649958,-222.05138977,0.00035,120]
[404101235,1769838649968,-219.02218956,0.00035,30]
[404101236,1769838649978,-2477.90489997,0.00035,30]
[404101237,1769838649990,-150.0,0.00035,69]
[404101238,1769838649999,-250.0,0.00035,120]
[404101239,1769838650008,-161.0,0.00035,14]
[404101240,1769838650018,-160.0,0.00035,14]
[404101241,1769838650030,-20330.0,0.00035,4]
[404101242,1769838650039,-157.13,0.00035,2]
[404101243,1769838650049,-229.118893,0.00035,120]
[404101244,1769838650060,-160.26558987,0.00035,2]
[404101245,1769838650070,-166937.38007904,0.00035,15]
[404101246,1769838650080,-951.54754058,0.00035001,2]
[404101247,1769838650089,-951.54754058,0.00035014,2]
[404101248,1769838650099,-194.7961003,0.00035014,30]
[404101249,1769838650109,-194.7961003,0.00035014,30]
[404101250,1769838650120,-194.7961003,0.00035014,30]
[404101251,1769838650130,-194.7961003,0.00035014,30]
[404101252,1769838650139,-194.7961003,0.00035014,30]
[404101253,1769838650149,-194.7961003,0.00035014,30]
[404101254,1769838650159,-194.7961003,0.00035014,30]
[404101255,1769838650168,-194.7961003,0.00035014,30]
[404101256,1769838650178,-194.7961003,0.00035014,30]
[404101257,1769838650187,-194.7961003,0.00035014,30]
[404101258,1769838650198,-194.7961003,0.00035014,30]
[404101259,1769838650208,-194.7961003,0.00035014,30]
[404101260,1769838650218,-194.7961003,0.00035014,30]
[404101261,1769838650228,-194.7961003,0.00035014,30]
[404101262,1769838650238,-194.7961003,0.00035014,30]
[404101263,1769838650335,-194.7961003,0.00035014,30]
[404101264,1769838650345,-194.7961003,0.00035014,30]
[404101265,1769838650356,-194.7961003,0.00035014,30]
[404101266,1769838650366,-194.7961003,0.00035014,30]
[404101267,1769838650375,-759.318122,0.00035014,30]
[404101268,1769838650385,-194.7961003,0.00035014,30]
[404101269,1769838650394,-194.7961003,0.00035014,30]
[404101270,1769838650404,-194.7961003,0.00035014,30]
[404101271,1769838650414,-2160.93,0.00035014,120]
[404101272,1769838650423,-722.02,0.00035016,60]
[404101273,1769838650432,-4593.6469705,0.00035025,7]
[404101274,1769838650442,-951.54754058,0.00035026,2]
[404101275,1769838650456,-2000.0,0.00035068,120]
[404101276,1769838650465,-799.0,0.00035068,30]
[404101277,1769838650474,-722.02,0.00035116,60]
[404101278,1769838650484,-1193580.52232107,0.00035126,20]
[404101279,1769838650562,-445.63126506,0.00035126,20]
[404101280,1769838650573,-27717.45800868,0.00035126,20]
[404101281,1769838650607,-151.0,0.00023288,2]
[404101282,1769838650616,-151.0,0.00023288,2]
[404101283,1769838650625,-151.0,0.00023288,2]
[404101284,1769838650635,-260.505293,0.00023288,2]
[404101285,1769838650644,-4924.9608205,0.00035126,20]
[404101286,1769838650655,-1149.51,0.00035126,20]
[404101287,1769838650666,-999.3076169,0.00035126,20]
[404101288,1769838650729,-240.003326,0.00023288,2]
[404101289,1769838650738,-305.752651,0.00023749,2]
[404101290,1769838650747,-225.34345342,0.00035126,20]
[404101291,1769838650758,-908.51,0.00035126,20]
[404101292,1769838650791,-1433.20121483,0.00035126,20]
[404101293,1769838650802,-9602.07273299,0.00035126,20]
[404101294,1769838650814,-710.13559901,0.00035126,20]
[404101295,1769839221374,-7060.44416699,0.0001,2]
[404101324,1769839831986,-5000.0,9.703e-05,2]
[404101326,1769839831996,-290.51051164,9.851e-05,2]
[404101328,1769839832005,-1200.0,9.997e-05,2]
[404101330,1769839832014,-300.0,9.998e-05,2]
[404101332,1769839832023,-300.0,9.999e-05,2]
[404101334,1769839832033,-300.0,9.999e-05,2]
[404101335,1769839832042,-300.0,9.999e-05,2]
[404101337,1769839832051,-300.0,9.999e-05,2]
[404101339,1769839832061,-65662.29583301,0.0001,2]
[404101341,1769839832071,-300.0,0.00010199,2]
[404101344,1769839832080,-300.0,0.00010199,2]
[404101346,1769839832090,-300.0,0.00010199,2]
[404101348,1769839832099,-300.0,0.00010199,2]
[404101349,1769839832109,-300.0,0.00010199,2]
[404101351,1769839832118,-300.0,0.00010199,2]
[404101353,1769839832127,-300.0,0.00010199,2]
[404101355,1769839832137,-300.0,0.00010199,2]
[404101357,1769839832146,-300.0,0.00010199,2]
[404101358,1769839832155,-300.0,0.00010199,2]
[404101360,1769839832164,-300.0,0.00010199,2]
[404101362,1769839832174,-300.0,0.00010199,2]
[404101364,1769839832184,-300.0,0.00010199,2]
[404101366,1769839832193,-300.0,0.00010199,2]
[404101369,1769839832211,-300.0,0.00010199,2]
[404101371,1769839832222,-600.0,0.00010199,2]
[404101374,1769839832231,-500.0,0.00011,2]
[404101376,1769839832241,-720.0,0.00011219,2]
[404101377,1769839832250,-1000.0,0.00012,2]
[404101379,1769839832260,-864.0,0.00012341,2]
[404101381,1769839832270,-827.87099682,0.000129,2]
[404101383,1769839832280,-500.0,0.00013273,2]
[404101385,1769839832290,-500.0,0.00013273,2]
[404101387,1769839832299,-1000.0,0.00013575,2]
[404101388,1769839832309,-827.87099679,0.00013657,2]
[404101389,1769839832319,-2953.4204642,0.00013699,2]
[404101390,1769839832328,-1000.0,0.00013699,2]
[404101391,1769839832338,-500.0,0.00013699,2]
[404101392,1769839832348,-500.0,0.00013699,2]
[404101393,1769839832357,-390.5008343,0.00013821,2]
[404101394,1769839832367,-1009.07722835,0.00014,2]
[404101395,1769839832376,-1000.0,0.00014932,2]
[404101396,1769839832389,-244.0,0.00014932,2]
[404101397,1769839832399,-20780.2196757,0.00014942,2]
[404101398,1769839832409,-1495.361267,0.00015708,2]
[404101399,1769839832419,-1000.0,0.00016426,2]
[404101400,1769839832430,-492.0,0.00016426,2]
[404101401,1769839832439,-185.21,0.0001644,2]
[404101402,1769839832450,-827.87099679,0.00017216,2]
[404101403,1769839832461,-1000.0,0.00018068,2]
[404101404,1769839832471,-791.0,0.00018068,2]
[404101405,1769839832480,-1041.66666667,0.00019366,2]
[404101406,1769839832490,-182.32,0.00019675,2]
[404101407,1769839832500,-425.46,0.00019775,2]
[404101408,1769839832509,-1000.0,0.00019875,2]
[404101409,1769839832519,-1000.0,0.00019875,2]
[404101410,1769839832528,-827.87099679,0.00020774,2]
[404101411,1769839832538,-3000.0,0.00021,2]
[404101412,1769839832548,-3000.0,0.0002101,2]
[404101413,1769839832558,-4227.590731,0.0002102,2]
[404101414,1769839832567,-1000.0,0.00021862,10]
[404101415,1769839832577,-1000.0,0.00021862,10]
[404101416,1769839832586,-579.0,0.00021862,10]
[404101417,1769839832596,-418.0,0.0002351,2]
[404101418,1769839832606,-179.0,0.0002351,2]
[404101419,1769839832615,-1495.361267,0.00023562,2]
[404101420,1769839832625,-1000.0,0.00024049,10]
[404101421,1769839832634,-1000.0,0.00024049,10]
[404101422,1769839832644,-280.0,0.00024049,10]
[404101423,1769839832653,-827.87099679,0.00024333,2]
[404101424,1769839832666,-380.0,0.00024658,2]
[404101425,1769839832676,-332.0,0.00024706,7]
[404101426,1769839832686,-332.0,0.00024711,2]
[404101427,1769839832696,-161.0,0.000248,7]
[404101428,1769839832706,-332.0,0.00024848,2]
[404101429,1769839832716,-5488.433366,0.000249,2]
[404101430,1769839832726,-332.0,0.00025062,2]
[404101431,1769839832736,-332.0,0.00025123,2]
[404101432,1769839832745,-332.0,0.00025194,2]
[404101433,1769839832755,-332.0,0.00025324,2]
[404101434,1769839832764,-332.0,0.0002534,2]
[404101435,1769839832774,-332.0,0.00025396,7]
[404101436,1769839832783,-332.0,0.00025444,2]
[404101437,1769839832793,-332.0,0.00025494,2]
[404101438,1769839832802,-185.21,0.0002587,2]
[404101439,1769839832811,-332.0,0.00025871,2]
[404101440,1769839832821,-5488.433366,0.0002588,2]
[404101441,1769839832830,-332.0,0.0002589,2]
[404101442,1769839832839,-332.0,0.00026244,2]
[404101443,1769839832849,-332.0,0.00026375,2]
[404101444,1769839832858,-418.0,0.0002651,2]
[404101445,1769839832867,-332.0,0.00026559,2]
[404101446,1769839832876,-332.0,0.00026578,2]
[404101447,1769839832885,-332.0,0.00026587,2]
[404101448,1769839832894,-332.0,0.00026719,2]
[404101449,1769839832903,-332.0,0.00026822,2]
[404101450,1769839832912,-332.0,0.00026888,2]
[404101451,1769839832921,-332.0,0.0002691,2]
[404101452,1769839832930,-332.0,0.00026962,2]
[404101453,1769839832940,-332.0,0.00026976,2]
[404101454,1769839832949,-332.0,0.00027104,2]
[404101455,1769839832958,-827.87099679,0.00027891,2]
[404101456,1769839832967,-167.204,0.000286,20]
[404101457,1769839832976,-418.0,0.0002951,2]
[404101458,1769839832985,-2000.0,0.00030048,7]
[404101459,1769839832994,-1362.0,0.00031191,30]
[404101460,1769839833003,-827.87099679,0.0003145,2]
[404101461,1769839833012,-418.0,0.0003251,2]
[404101462,1769839833021,-799.0,0.00032877,30]
[404101463,1769839833030,-2000.0,0.00033366,7]
[404101464,1769839833038,-799.0,0.00033425,30]
[404101465,1769839833047,-951.55,0.00033698,30]
[404101466,1769839833057,-268.46309648,0.000339,120]
[404101467,1769839833066,-172.00749181,0.000339,120]
[404101468,1769839833078,-170.13512013,0.000339,120]
[404101469,1769839833087,-185.88295748,0.000339,120]
[404101470,1769839833096,-179.44765403,0.000339,120]
[404101471,1769839833106,-182.65088472,0.000339,120]
[404101472,1769839833115,-259.71637366,0.000339,120]
[404101473,1769839833124,-799.0,0.00033973,30]
[404101474,1769839833133,-229.91876199,0.00033975,2]
[404101475,1769839833142,-951.55,0.0003452,31]
[404101476,1769839833152,-799.0,0.00034521,30]
[404101477,1769839833161,-161.0,0.000348,120]
[404101478,1769839833171,-268.46309648,0.000349,120]
[404101479,1769839833180,-172.00749181,0.000349,120]
[404101480,1769839833189,-182.65088472,0.000349,120]
[404101481,1769839833198,-259.71637366,0.000349,120]
[404101482,1769839833207,-827.87099679,0.00035008,2]
[404101483,1769839833216,-160.0,0.00035047,5]
[404101484,1769839833226,-799.0,0.00035068,30]
[404101485,1769839833235,-5488.433366,0.0003509,2]
[404101486,1769839833244,-5488.433366,0.00035098,2]
[404101487,1769839833253,-185.21,0.00035098,2]
[404101488,1769839833263,-46082.3246493,0.000351,2]
[404101489,1769839833276,-1234.94503828,0.000351,2]
[404101490,1769839833287,-419.94871492,0.000351,2]
[404101491,1769839833297,-403.8077687,0.000351,2]
[404101492,1769839833306,-950.201691,0.00035108,31]
[404101493,1769839833316,-950.201691,0.00035108,31]
[404101494,1769839833330,-950.201691,0.00035108,31]
[404101495,1769839833340,-950.201691,0.00035108,31]
[404101496,1769839833349,-950.201691,0.00035108,31]
[404101497,1769839833359,-950.201691,0.00035108,31]
[404101498,1769839833369,-950.201691,0.00035108,31]
[404101499,1769839833379,-950.201691,0.00035108,31]
[404101500,1769839833393,-298.65360787,0.00035108,31]
[404101501,1769839833405,-651.54808313,0.00035108,31]
[404101502,1769839833414,-86.6101828,0.00035108,31]
[404101511,1769839838088,-179.0,0.0002651,2]
[404101512,1769839838099,-179.0,0.0002951,2]
[404101513,1769839838109,-179.0,0.0003251,2]
[404101514,1769839838119,-863.5915082,0.00035108,31]
[404101515,1769839838128,-950.201691,0.00035108,31]
[404101516,1769839838137,-950.201691,0.00035108,31]
[404101517,1769839838146,-1831.660137,0.00035108,31]
[404101518,1769839838156,-1831.660137,0.00035108,31]
[404101519,1769839838166,-1831.660137,0.00035108,31]
[404101520,1769839838175,-1831.660137,0.00035108,31]
[404101521,1769839838185,-1831.660137,0.00035108,31]
[404101522,1769839838194,-1831.660137,0.00035108,31]
[404101523,1769839838204,-1831.660137,0.00035108,31]
[404101524,1769839838215,-1831.660137,0.00035108,31]
[404101525,1769839838224,-1831.660137,0.00035108,31]
[404101526,1769839838239,-1831.660137,0.00035108,31]
[404101527,1769839838248,-1831.660137,0.00035108,31]
[404101528,1769839838258,-1831.660137,0.00035108,31]
[404101529,1769839838268,-1831.660137,0.00035108,31]
[404101530,1769839838277,-1831.660137,0.00035108,31]
[404101531,1769839838287,-341.75124748,0.00035108,31]
[404101532,1769839838299,-1489.90888952,0.00035108,31]
[404101533,1769839838309,-1831.660137,0.00035108,31]
[404101534,1769839838319,-1831.660137,0.00035108,31]
[404101535,1769839838329,-1831.660137,0.00035108,31]
[404101536,1769839838339,-1831.660137,0.00035108,31]
[404101537,1769839838348,-1831.660146,0.00035108,31]
[404101538,1769839838363,-1305.0,0.00035108,30]
[404101539,1769839838374,-74898.49882476,0.00035108,20]
[404101570,1769839840291,-874.72,0.00024953,2]
[404101571,1769839840353,-491.64041845,0.00024953,2]
[404101728,1769839844880,-3633.63958155,0.00024953,2]
[404101729,1769839844890,-1197.0,0.00035108,30]
[404101730,1769839844900,-11438.75191845,0.00035108,20]
[404101752,1769839846222,-1151.0,0.00035108,30]
[404101753,1769839846232,-6247.38654579,0.00035108,20]
[404101754,1769839846246,-5315.38452174,0.00035108,20]
[404101763,1769840919064,500.48360225,6.546e-05,2]
[404101801,1769841032054,-1200.0,0.00015398,2]
[404101803,1769841032063,-235.97196408,0.00015399,2]
[404101805,1769841032073,-256.11989131,0.00015399,2]
[404101807,1769841032083,-500.0,0.00015399,2]
[404101809,1769841032093,-500.0,0.00015399,2]
[404101811,1769841032102,-500.0,0.00015399,2]
[404101813,1769841032111,-500.0,0.00015399,2]
[404101815,1769841032120,-500.0,0.00015399,2]
[404101817,1769841032129,-500.0,0.00015399,2]
[404101819,1769841032139,-596.24043751,0.00015399,2]
[404101821,1769841032149,-444.16334536,0.00015399,2]
[404101823,1769841032158,-500.0,0.00015399,2]
[404101825,1769841032167,-500.0,0.00015399,2]
[404101827,1769841032176,-500.0,0.00015399,2]
[404101829,1769841032186,-500.0,0.00015399,2]
[404101831,1769841032194,-500.0,0.00015399,2]
[404101833,1769841032203,-369.60236326,0.00015399,2]
[404101835,1769841032214,-130.39763674,0.00015399,2]
[404101837,1769841032223,-591.76341053,0.00015399,2]
[404101838,1769841032233,-81.85806445,0.00015399,2]
[404101910,1769841038121,-2911.48853827,0.00015244,2]
[404101914,1769841038239,-2088.51146173,0.00015244,2]
[404101915,1769841038249,-418.14193555,0.00015399,2]
[404101916,1769841038393,-500.0,0.00015399,2]
[404101917,1769841038403,-500.0,0.00015399,2]
[404101918,1769841038412,-500.0,0.00015399,2]
[404101919,1769841038421,-500.0,0.00015399,2]
[404101920,1769841038431,-500.0,0.00015399,2]
[404101921,1769841038440,-500.0,0.00015399,2]
[404101922,1769841038450,-500.0,0.00015399,2]
[404101923,1769841038460,-500.0,0.00015399,2]
[404101924,1769841038470,-500.0,0.00015399,2]
[404101925,1769841038480,-500.0,0.00015399,2]
[404101926,1769841038489,-500.0,0.00015399,2]
[404101927,1769841038499,-211829.63336272,0.000154,2]
[404101928,1769841038508,-216.30979038,0.00016,2]
[404101929,1769841038517,-164.67352587,0.00016438,2]
[404101930,1769841038527,-25680.93250176,0.00017,2]
[404101931,1769841038543,-696.95406077,0.0001747,2]
[404101932,1769841038556,-64531.0051745,0.00018,2]
[404101933,1769841038570,-420.44542782,0.00021631,7]
[404101934,1769841038586,-2131.3077325,0.00024142,2]
[404101935,1769841038596,-21953.733464,0.000249,2]
[404101936,1769841038606,-165.75,0.000253,2]
[404101937,1769841038616,-150.32,0.000253,14]
[404101938,1769841038626,-179.0,0.0002602,2]
[404101939,1769841038636,-167.205,0.00028821,21]
[404101940,1769841038646,-179.0,0.0002902,2]
[404101941,1769841038656,-1153.0,0.00031923,30]
[404101942,1769841038668,-179.0,0.0003202,2]
[404101943,1769841038679,-755.4658912,0.00032518,2]
[404101944,1769841038689,-849.65,0.00032877,30]
[404101945,1769841038699,-161.07785789,0.000339,120]
[404101946,1769841038708,-172.00749182,0.000339,120]
[404101947,1769841038718,-194.78728025,0.000339,120]
[404101948,1769841038728,-1779.10883623,0.000343,7]
[404101949,1769841038737,-10235.0011859,0.00034763,2]
[404101950,1769841038747,-14960.0,0.000348,30]
[404101951,1769841038758,-161.07785789,0.000349,120]
[404101952,1769841038768,-172.00749182,0.000349,120]
[404101953,1769841038779,-194.78728025,0.000349,120]
[404101954,1769841038789,-65861.200392,0.00034998,2]
[404101955,1769841038799,-179.0,0.0003502,2]
[404101956,1769841038808,-872.26,0.00035108,30]
[404101957,1769841038818,-151.0,0.00035108,14]
[404101958,1769841038830,-151.0,0.00035108,14]
[404101959,1769841038839,-151.0,0.00035108,14]
[404101960,1769841038851,-151.0,0.00035108,14]
[404101961,1769841038861,-151.0,0.00035108,14]
[404101962,1769841038871,-152.0,0.00035108,14]
[404101963,1769841038882,-151.0,0.00035108,14]
[404101964,1769841038892,-152.0,0.00035108,14]
[404101965,1769841038901,-152.0,0.00035108,14]
[404101966,1769841038911,-151.0,0.00035108,14]
[404101967,1769841038920,-152.0,0.00035108,14]
[404101968,1769841038930,-151.0,0.00035108,14]
[404101969,1769841038939,-152.0,0.00035108,14]
[404101970,1769841038948,-240.0,0.00035108,14]
[404101971,1769841038958,-292.0,0.00035108,14]
[404101972,1769841038967,-155.382,0.00035125,2]
[404101973,1769841038977,-500.0,0.00035126,5]
[404101974,1769841038987,-399.73891348,0.00035147,7]
[404101975,1769841038997,-473.40113815,0.00035147,7]
[404101976,1769841039006,-384.23822702,0.00035147,7]
[404101977,1769841039015,-550.60124951,0.00035147,7]
[404101978,1769841039025,-597.61307974,0.00035147,7]
[404101979,1769841039035,-500.0,0.00035147,7]
[404101980,1769841039046,-382.68481615,0.00035147,7]
[404101981,1769841039055,-510.1959345,0.00035147,7]
[404101982,1769841039065,-151.0,0.00035148,31]
[404101983,1769841039075,-151.0,0.00035148,31]
[404101984,1769841039085,-151.0,0.00035148,31]
[404101985,1769841039094,-279.442228,0.00035148,31]
[404101986,1769841039105,-151.0,0.00035148,31]
[404101987,1769841039114,-228.890631,0.00035148,31]
[404101988,1769841039123,-361.076643,0.00035148,31]
[404101989,1769841039133,-361.076643,0.00035148,31]
[404101990,1769841039142,-361.076643,0.00035148,31]
[404101991,1769841039156,-361.076643,0.00035148,31]
[404101992,1769841039165,-361.076643,0.00035148,31]
[404101993,1769841039175,-361.076643,0.00035148,31]
[404101994,1769841039184,-361.076643,0.00035148,31]
[404101995,1769841039194,-361.076643,0.00035148,31]
[404101996,1769841039204,-361.076643,0.00035148,31]
[404101997,1769841039213,-361.076643,0.00035148,31]
[404101998,1769841039223,-361.076643,0.00035148,31]
[404101999,1769841039232,-361.076643,0.00035148,31]
[404102000,1769841039242,-361.076643,0.00035148,31]
[404102001,1769841039251,-361.076643,0.00035148,31]
[404102002,1769841039260,-361.076643,0.00035148,31]
[404102003,1769841039269,-361.076643,0.00035148,31]
[404102004,1769841039279,-361.076643,0.00035148,31]
[404102005,1769841039288,-361.076643,0.00035148,31]
[404102006,1769841039298,-361.076643,0.00035148,31]
[404102007,1769841039307,-361.076646,0.00035148,31]
[404102008,1769841039317,-546049.44594199,0.00035148,20]
[404102056,1769841040437,-1057.0,0.000339,30]
[404102058,1769841040446,-0.76517318,0.00035148,20]
[404102126,1769841045562,-1105.0,0.00035148,30]
[404102127,1769841045571,-509.8428781,0.00035148,20]
[404102162,1769841046485,-969.0,0.00035148,30]
[404102163,1769841046494,-4463.44374614,0.00035148,20]
[404102231,1769842232264,-500.0,0.00013699,2]
[404102232,1769842232277,-502.31568725,0.00013699,2]
[404102383,1769842238483,-112.68431275,0.00013699,2]
[404102384,1769842238493,-211.37020607,0.00013836,2]
[404102385,1769842238503,-87.18430063,0.00014247,2]
[404102386,1769842238514,-414.53178864,0.00014247,2]
[404102387,1769842238523,-179.0,0.00027373,2]
[404102388,1769842238532,-400.0,0.00030136,2]
[404102389,1769842238541,-1200.0,0.00030136,2]
[404102390,1769842238551,-5000.0,0.00030137,120]
[404102391,1769842238560,-5000.0,0.00030137,120]
[404102392,1769842238570,-179.0,0.00030373,2]
[404102393,1769842238579,-355.7,0.000313,20]
[404102394,1769842238588,-200.0,0.00032475,2]
[404102395,1769842238598,-179.0,0.00033373,2]
[404102396,1769842238608,-278.37,0.000334,20]
[404102397,1769842238617,-161.07785789,0.000339,120]
[404102398,1769842238627,-172.00749181,0.000339,120]
[404102399,1769842238636,-194.78728024,0.000339,120]
[404102400,1769842238646,-6551.69690042,0.0003441,2]
[404102401,1769842238658,-2650.0,0.0003441,2]
[404102402,1769842238669,-374.57214792,0.0003441,2]
[404102423,1769842240591,-975.0,0.00031924,30]
[404102425,1769842240600,-331.50365617,0.0003441,2]
[404102426,1769842240612,-1376.99468657,0.0003441,2]
[404102427,1769842240676,-9247.41382327,0.0003441,2]
[404102440,1769842246547,-2814.94207488,0.00030137,120]
[404102441,1769842246668,-2185.05792512,0.00030137,120]
[404102442,1769842246679,-9997.81531945,0.0003441,2]
[404102443,1769842246689,-975.0,0.0003441,30]
[404102444,1769842246698,-51326.07215913,0.0003442,2]
[404102445,1769842247075,-41772.8149807,0.0003442,2]
[404102446,1769842248132,-934.0,0.00031924,30]
[404102447,1769842248142,-605.47300136,0.0003442,2]
[404102448,1769842248154,-5000.0,0.0003442,2]
[404102465,1769843432354,-5000.0,0.00030137,120]
[404102466,1769843432364,-754.4774446,0.00032028,30]
[404102467,1769843432374,-200.73,0.0003388,120]
[404102468,1769843432383,-194.78728024,0.000339,120]
[404102469,1769843432393,-161.07785789,0.000339,120]
[404102470,1769843432402,-168.84769177,0.0003421,2]
[404102471,1769843432411,-6459.30509188,0.0003422,2]
[404102472,1769843432423,-210252.50370543,0.0003422,2]
[404102578,1769843446651,-5000.0,0.00030137,120]
[404102579,1769843446660,-547.26,0.0003421,10]
[404102581,1769843446670,-456.05,0.0003421,10]
[404102583,1769843446680,-2535.93098882,0.0003422,2]
[404102584,1769843446823,-19313.46,0.0003422,2]
[404102611,1769844631554,-277.95541517,0.0002789,2]
[404102612,1769844631564,-300.0,0.00030136,2]
[404102613,1769844631574,-1200.0,0.00030136,2]
[404102614,1769844631583,-5000.0,0.00030137,120]
[404102615,1769844631593,-199.99,0.00030137,120]
[404102616,1769844631603,-161.07785789,0.000339,120]
[404102617,1769844631612,-167.205,0.000339,37]
[404102618,1769844631622,-2793.3081576,0.00033914,2]
[404102619,1769844631632,-651.0,0.00033946,2]
[404102620,1769844631642,-3031.5787972,0.00034,60]
[404102656,1769844637729,-14571.56309627,0.00034,60]
[404102658,1769844637742,-280.27112456,0.00034,60]
[404102694,1769844640042,-3405.55223472,0.00030137,120]
[404102716,1769844645903,-1594.44776528,0.00030137,120]
[404102717,1769844645913,-3070.60586422,0.00034,60]
[404102783,1769845832042,-3000.0,0.00030137,120]
[404102820,1769845838023,-2000.0,0.00030137,120]
[404102821,1769845838033,-855.0,0.0003124,30]
[404102822,1769845838042,-380.04,0.0003369,10]
[404102823,1769845838054,-316.7,0.0003369,10]
[404102824,1769845838064,-54455.90780873,0.000337,2]
[404102825,1769845838164,-704.25938869,0.000337,2]
[404102830,1769845840239,-46199.7722132,0.000337,2]
[404102831,1769845840251,-14786.09761201,0.000337,2]
[404102856,1769845846252,-5000.0,0.00030137,120]
[404102857,1769845846263,-263.92,0.0003369,10]
[404102858,1769845846272,-69930.91935823,0.000337,2]
[404102908,1769847032081,-225.45669856,0.000188,2]
[404102911,1769847032091,-150.26028662,0.00024658,2]
[404102913,1769847032100,-691.6962548,0.00030137,120]
[404103008,1769847038142,-4308.3037452,0.00030137,120]
[404103009,1769847038154,-819.0,0.000319,30]
[404103010,1769847038163,-400.0,0.00033201,11]
[404103011,1769847038173,-206.11290501,0.00033496,2]
[404103012,1769847038183,-167.20551429,0.0003358,36]
[404103013,1769847038191,-10113.75509003,0.0003358,2]
[404103014,1769847038361,-80201.05139077,0.0003358,2]
[404103015,1769847038380,-200.0,0.00033596,120]
[404103016,1769847038390,-624.0,0.00033672,2]
[404103018,1769847038401,-200.0,0.00033677,120]
[404103020,1769847038411,-219.93,0.0003369,10]
[404103022,1769847038425,-183.28,0.0003369,10]
[404103024,1769847038440,-152.73,0.0003369,10]
[404103026,1769847038450,-835.91,0.00033698,30]
[404103028,1769847038460,-2674.1,0.000337,14]
[404103030,1769847038470,-500.02,0.000337,2]
[404103032,1769847038480,-151.0,0.000337,17]
[404103034,1769847038490,-151.0,0.000337,10]
[404103036,1769847038499,-151.0,0.000337,31]
[404103038,1769847038508,-151.0,0.000337,31]
[404103040,1769847038517,-151.0,0.000337,31]
[404103042,1769847038527,-285.287538,0.000337,31]
[404103044,1769847038535,-932.64,0.000337,2]
[404103046,1769847038544,-932.64,0.000337,2]
[404103047,1769847038554,-932.64,0.000337,2]
[404103050,1769847038563,-932.64,0.000337,2]
[404103052,1769847038573,-932.64,0.000337,2]